bitfinex-derivatives/quotes_SOLF0:USTF0_20251216
["timestamp","ask_amount","ask_price","bid_price","bid_amount"]
[1765904830024,66.1,128.46,128.44,0.00295948]
[1765904831127,73.1076,128.46,128.44,0.00295948]
[1765904831422,75.6176,128.46,128.44,0.00295948]
[1765904831813,2.51,128.45,128.44,0.00295948]
[1765904832017,75.6176,128.46,128.44,0.00295948]
[1765904833619,2.51,128.45,128.44,0.00295948]
[1765904834822,9.5181,128.45,128.44,0.00295948]
[1765904835030,7.0081,128.45,128.44,0.00295948]
[1765904835426,9.5181,128.45,128.44,0.00295948]
[1765904837131,7.0081,128.45,128.44,0.00295948]
[1765904837427,13.25006302,128.45,128.44,0.00295948]
[1765904838631,7.0081,128.45,128.44,0.00295948]
[1765904840231,68.61,128.46,128.44,0.00295948]
[1765904840434,66.1,128.46,128.44,0.00295948]
[1765904842032,68.61,128.46,128.44,0.00295948]
[1765904842336,75.6177,128.46,128.44,0.00295948]
[1765904842728,66.1,128.46,128.44,0.00295948]
[1765904843130,68.61,128.46,128.44,0.00295948]
[1765904844631,75.6178,128.46,128.44,0.00295948]
[1765904845033,73.1078,128.46,128.44,0.00295948]
[1765904845238,75.6178,128.46,128.44,0.00295948]
[1765904845436,0.05981199,128.47,128.44,0.00295948]
[1765904845932,0.05981199,128.47,128.45,3.39]
[1765904846633,0.05981199,128.47,128.45,10.398]
[1765904846833,0.05981199,128.47,128.46,3.39]
[1765904850743,2.51,128.54,128.47,3.39]
[1765904851545,0.05331147,128.52,128.49,3.44416821]
[1765904853748,0.05331147,128.52,128.49,10.45006821]
[1765904854050,0.05331147,128.52,128.5,3.34]
[1765904855750,0.05331147,128.52,128.51,3.14]
[1765904857254,0.05331147,128.52,128.51,10.1448]
[1765904857553,0.05331147,128.52,128.51,3.14]
[1765904862860,2.55331147,128.52,128.49,3.19416821]
[1765904863155,0.05331147,128.52,128.49,3.19416821]
[1765904864365,4.878851,128.52,128.49,3.19416821]
[1765904864569,2.5,128.51,128.49,3.19416821]
[1765904865361,4.878851,128.52,128.49,3.19416821]
[1765904866372,4.82553953,128.5,128.49,0.05416821]
[1765904867175,11.83093953,128.5,128.49,0.05416821]
[1765904867471,4.82553953,128.5,128.49,0.05416821]
[1765904867975,2.378851,128.52,128.49,3.19416821]
[1765904868168,4.878851,128.52,128.49,3.19416821]
[1765904868669,4.82553953,128.5,128.49,0.05416821]
[1765904869269,2.55331147,128.52,128.49,0.05416821]
[1765904869470,2.32553953,128.5,128.49,0.05416821]
[1765904872084,11.83093953,128.5,128.49,0.00416821]
[1765904874182,2.45,128.47,128.42,3.14]
[1765904874480,2.32553953,128.45,128.42,3.14]
[1765904874867,2.45,128.44,128.42,3.14]
[1765904875064,0.05466027,128.44,128.42,3.18940441]
[1765904875579,2.32553953,128.43,128.42,0.04940441]
[1765904876378,2.32553953,128.43,128.42,3.18940441]
[1765904878483,0.05466027,128.44,128.42,3.18940441]
[1765904878781,2.3801998,128.44,128.42,3.18940441]
[1765904880379,2.45,128.43,128.42,0.04940441]
[1765904880678,4.77553953,128.43,128.42,0.04940441]
[1765904880876,0.05466027,128.44,128.42,3.18940441]
[1765904882279,0.05466027,128.44,128.43,3.14]
[1765904882881,2.32553953,128.49,128.44,3.14]
[1765904883085,4.82553953,128.49,128.44,3.14]
[1765904883377,2.32553953,128.49,128.45,3.14]
[1765904883576,70.92553953,128.51,128.45,3.14]
[1765904883879,2.51,128.48,128.47,0.05868235]
[1765904885582,7.05555356,128.49,128.47,3.17868235]
[1765904885779,0.04945356,128.49,128.47,3.17868235]
[1765904889280,0.04945356,128.49,128.48,3.12]
[1765904890189,2.55945356,128.49,128.47,0.05868235]
[1765904890684,2.51,128.48,128.47,0.05868235]
[1765904891786,9.56555356,128.49,128.47,0.05868235]
[1765904892190,2.55945356,128.49,128.47,0.05868235]
[1765904893488,0.04945356,128.49,128.47,0.05868235]
[1765904893682,0.04945356,128.49,128.47,3.17868235]
[1765904893988,2.55945356,128.49,128.47,0.05868235]
[1765904894184,9.5165,128.48,128.47,0.05868235]
[1765904897291,2.45,128.46,128.4,3.12]
[1765904897495,2.45,128.44,128.4,3.12]
[1765904897701,2.45,128.43,128.4,3.12]
[1765904897902,7.0088,128.44,128.4,3.12]
[1765904898201,0.05474326,128.43,128.41,0.05813389]
[1765904898501,0.05474326,128.43,128.41,3.17813389]
[1765904902694,9.51404326,128.43,128.41,0.05813389]
[1765904903897,2.50474326,128.43,128.41,0.05813389]
[1765904905904,13.09443493,128.42,128.41,0.05813389]
[1765904906495,79.19443493,128.42,128.41,0.05813389]
[1765904908905,79.20245444,128.42,128.41,0.05813389]
[1765904913311,7.0109,128.4,128.36,3.12]
[1765904913501,2.39,128.39,128.36,3.12]
[1765904913906,2.39,128.38,128.34,3.15]
[1765904914304,2.44905167,128.37,128.35,0.05159723]
[1765904915113,68.51,128.36,128.35,0.05159723]
[1765904915503,75.523,128.36,128.35,0.05159723]
[1765904916813,79.16575444,128.36,128.35,0.05159723]
[1765904918917,0.05905167,128.37,128.35,0.05159723]
[1765904919109,66.19905167,128.37,128.35,3.31159723]
[1765904919419,9.403,128.36,128.35,0.05159723]
[1765904925320,9.4046,128.34,128.3,3.26]
[1765904925520,66.16,128.33,128.3,3.26]
[1765904925721,68.55,128.33,128.3,3.26]
[1765904926023,66.16,128.33,128.3,3.26]
[1765904926318,66.21106976,128.33,128.3,3.31990886]
[1765904929114,66.21106976,128.33,128.31,3.26]
[1765904931132,0.05106976,128.33,128.31,3.26]
[1765904931421,0.05106976,128.33,128.32,3.26]
[1765904932918,2.44106976,128.33,128.3,0.05990886]
[1765904933918,9.45576976,128.33,128.3,3.31990886]
[1765904935025,2.39,128.32,128.3,3.31990886]
[1765904935419,9.45576976,128.33,128.3,3.31990886]
[1765904935719,0.05106976,128.33,128.31,3.26]
[1765904936024,2.44106976,128.33,128.31,3.26]
[1765904936220,0.05106976,128.33,128.31,3.26]
[1765904937827,2.44106976,128.33,128.3,3.31990886]
[1765904938925,0.05106976,128.33,128.31,3.26]
[1765904939931,2.44106976,128.33,128.31,3.26]
[1765904940130,0.05106976,128.33,128.32,3.26]
[1765904940427,0.05106976,128.33,128.31,3.26]
[1765904941525,2.44106976,128.33,128.3,3.31990886]
[1765904942729,2.44106976,128.33,128.3,0.05990886]
[1765904942935,2.39,128.31,128.3,0.05990886]
[1765904943823,9.4058,128.31,128.3,0.05990886]
[1765904944022,109.17196976,128.33,128.3,3.32990886]
[1765904944023,2.45106976,128.33,128.3,3.32990886]
[1765904944225,68.63106976,128.33,128.3,3.32990886]
[1765904944427,2.4,128.32,128.3,3.32990886]
[1765904944920,66.23106976,128.33,128.3,3.32990886]
[1765904945126,68.63106976,128.33,128.3,3.32990886]
[1765904945726,75.64576976,128.33,128.3,3.32990886]
[1765904945926,2.4,128.32,128.3,3.32990886]
[1765904946624,2.4,128.32,128.3,0.05990886]
[1765904947332,2.4,128.31,128.3,0.05990886]
[1765904947630,9.4153,128.32,128.3,0.05990886]
[1765904947931,69.8738242,128.33,128.3,3.32990886]
[1765904948335,72.2738242,128.33,128.3,3.32990886]
[1765904948631,0.05106976,128.33,128.3,3.32990886]
[1765904949224,2.45106976,128.33,128.3,3.32990886]
[1765904949537,2.4,128.32,128.3,3.32990886]
[1765904949837,2.33364903,128.31,128.3,0.05990886]
[1765904950024,4.73364903,128.31,128.3,0.05990886]
[1765904950228,2.4,128.3,128.24,3.27]
[1765904950431,2.33364903,128.29,128.24,3.27]
[1765904950640,4.73364903,128.29,128.24,3.27]
[1765904950937,2.4,128.28,128.24,3.27]
[1765904951324,0.05301699,128.27,128.26,3.27]
[1765904952437,0.05301699,128.27,128.25,3.31925451]
[1765904952631,2.38666602,128.27,128.25,3.31925451]
[1765904952934,4.78666602,128.27,128.25,0.04925451]
[1765904953634,4.78666602,128.27,128.25,3.31925451]
[1765904953835,2.38666602,128.27,128.25,3.31925451]
[1765904954638,2.4,128.26,128.25,0.04925451]
[1765904954825,0.05301699,128.27,128.25,3.31925451]
[1765904955030,2.38666602,128.27,128.25,3.31925451]
[1765904956128,0.05301699,128.27,128.25,3.31925451]
[1765904956529,0.05301699,128.27,128.25,10.33825451]
[1765904956737,0.05301699,128.27,128.26,3.27]
[1765904959234,0.05301699,128.27,128.26,10.2885]
[1765904959936,0.00301699,128.27,128.26,11.8485]
[1765904961039,12.43278703,128.34,128.28,3.27]
[1765904961040,9.34844903,128.33,128.28,3.27]
[1765904961239,2.45,128.32,128.28,3.27]
[1765904961640,7.0153,128.32,128.28,3.27]
[1765904961842,0.0572508,128.31,128.3,3.27]
[1765904965046,2.33364903,128.34,128.3,3.27]
[1765904965251,66.2,128.35,128.3,3.27]
[1765904965745,66.2,128.35,128.32,3.27]
[1765904966043,66.25971606,128.35,128.32,3.31958244]
[1765904966644,0.05971606,128.35,128.33,3.27]
[1765904970148,4.89336509,128.35,128.32,3.31958244]
[1765904971249,2.39336509,128.35,128.33,3.27]
[1765904971444,0.05971606,128.35,128.33,3.27]
[1765904972847,0.05971606,128.35,128.33,10.2846]
[1765904973047,0.05971606,128.35,128.34,3.27]
[1765904973846,2.55971606,128.35,128.32,3.16958244]
[1765904974561,4.83364903,128.34,128.32,0.04958244]
[1765904974743,0.05971606,128.35,128.32,3.34958244]
[1765904975046,2.56,128.39,128.34,3.3]
[1765904975847,2.56,128.39,128.35,0.05107761]
[1765904976053,2.56,128.39,128.35,3.35107761]
[1765904976054,0.06004235,128.38,128.35,3.35107761]
[1765904978048,2.33364903,128.44,128.39,3.3]
[1765904978243,2.62,128.43,128.39,3.3]
[1765904979046,0.05919651,128.42,128.4,0.05460655]
[1765904979656,0.05919651,128.42,128.4,3.35460655]
[1765904982146,4.94986733,128.41,128.4,0.05460655]
[1765904985762,2.57,128.38,128.35,3.3]
[1765904985954,4.89986733,128.38,128.35,3.3]
[1765904986350,109.0506,128.41,128.32,3.3]
[1765904986351,4.89986733,128.36,128.32,3.3]
[1765904987059,0.0512385,128.35,128.34,3.3]
[1765904988560,0.0512385,128.35,128.33,3.35965536]
[1765904991558,0.0512385,128.35,128.34,3.3]
[1765904991959,2.6212385,128.35,128.33,0.05965536]
[1765904992256,0.0512385,128.35,128.33,3.35965536]
[1765904992663,2.38110583,128.35,128.33,3.35965536]
[1765904993567,0.0512385,128.35,128.33,3.35965536]
[1765904996860,0.0512385,128.35,128.33,10.37425536]
[1765904997051,0.0512385,128.35,128.34,3.3]
[1765905000265,2.6212385,128.35,128.33,3.35965536]
[1765905000569,0.0512385,128.35,128.33,3.35965536]
[1765905001659,0.0512385,128.35,128.33,0.05965536]
[1765905001660,4.89986733,128.34,128.33,0.05965536]
[1765905001862,2.32986733,128.34,128.33,0.05965536]
[1765905002069,4.95110583,128.35,128.33,0.05965536]
[1765905002270,2.57,128.34,128.33,0.05965536]
[1765905003272,0.0512385,128.35,128.33,3.35965536]
[1765905003866,4.95110583,128.35,128.33,0.05965536]
[1765905004068,2.57,128.34,128.33,0.05965536]
[1765905004369,4.95110583,128.35,128.33,0.05965536]
[1765905005169,2.57,128.34,128.33,0.05965536]
[1765905005359,9.5841,128.34,128.33,0.05965536]
[1765905005564,2.51,128.33,128.27,3.32]
[1765905005758,4.83986733,128.31,128.27,3.32]
[1765905006569,4.83986733,128.31,128.28,0.05434396]
[1765905006763,0.05577796,128.3,128.28,3.37434396]
[1765905010075,0.05577796,128.3,128.28,0.05434396]
[1765905010076,2.56577796,128.3,128.28,0.05434396]
[1765905010776,4.83986733,128.29,128.28,0.05434396]
[1765905011378,73.89970173,128.29,128.28,0.05434396]
[1765905011579,73.89970173,128.29,128.19,69.92970173]
[1765905011580,2.46,128.26,128.22,3.32]
[1765905012581,0.05517064,128.25,128.23,3.36950827]
[1765905014883,2.46,128.24,128.23,0.04950827]
[1765905015089,68.64,128.24,128.23,0.04950827]
[1765905016583,0.05517064,128.25,128.23,3.36950827]
[1765905016785,2.51517064,128.25,128.23,0.04950827]
[1765905016992,6.10970173,128.24,128.23,0.04950827]
[1765905017882,2.46,128.24,128.23,0.04950827]
[1765905018077,9.53427064,128.25,128.23,0.04950827]
[1765905018285,2.46,128.24,128.23,0.04950827]
[1765905018488,7.07427064,128.25,128.23,3.36950827]
[1765905018688,9.53427064,128.25,128.23,0.04950827]
[1765905020087,2.46,128.24,128.23,0.04950827]
[1765905020294,6.10970173,128.24,128.23,0.04950827]
[1765905021496,2.46,128.24,128.23,0.04950827]
[1765905021996,6.10970173,128.24,128.23,0.04950827]
[1765905022779,6.10970173,128.24,128.18,3.32]
[1765905022780,2.41,128.2,128.16,3.32]
[1765905022987,7.0215,128.21,128.16,3.32]
[1765905023187,9.4315,128.21,128.16,3.32]
[1765905023583,2.41,128.2,128.13,3.64970173]
[1765905023784,2.41,128.2,128.1,179.25670173]
[1765905023785,0.0589921,128.18,128.15,3.37640202]
[1765905025290,2.4689921,128.18,128.15,0.05640202]
[1765905025596,68.6889921,128.18,128.15,0.05640202]
[1765905025787,66.2789921,128.18,128.15,3.37640202]
[1765905025988,73.3018921,128.18,128.15,3.37640202]
[1765905026294,75.7118921,128.18,128.15,3.37640202]
[1765905026491,7.0235,128.17,128.15,3.37640202]
[1765905026794,9.4335,128.17,128.15,0.05640202]
[1765905027490,7.0235,128.17,128.15,0.05640202]
[1765905027692,7.0235,128.17,128.15,3.37640202]
[1765905028190,68.6889921,128.18,128.15,3.37640202]
[1765905029093,75.7118921,128.18,128.15,3.37640202]
[1765905029294,2.41,128.17,128.15,0.05640202]
[1765905029793,9.434,128.16,128.15,0.05640202]
[1765905030588,13.08370173,128.16,128.15,0.05640202]
[1765905030794,13.08370173,128.16,128.08,3.32]
[1765905030795,2.35,128.13,128.08,3.32]
[1765905030988,2.35,128.12,128.08,3.32]
[1765905031294,2.35,128.11,128.08,3.32]
[1765905031702,2.40275677,128.11,128.08,3.3723788]
[1765905031904,2.35,128.09,128.08,0.0523788]
[1765905032201,68.59,128.09,128.08,0.0523788]
[1765905036698,66.24,128.09,128.08,3.2623788]
[1765905036898,66.24,128.09,128.08,0.0523788]
[1765905037502,66.24,128.09,128.08,3.2623788]
[1765905038102,66.24,128.09,128.08,0.0523788]
[1765905038609,66.24,128.09,128.08,3.2623788]
[1765905038909,66.24,128.09,128.08,0.0523788]
[1765905039515,0.05275677,128.11,128.08,3.2623788]
[1765905041617,0.05275677,128.11,128.08,10.2905788]
[1765905041918,0.05275677,128.11,128.09,3.21]
[1765905044411,0.00275677,128.11,128.1,3.21]
[1765905044719,66.28,128.16,128.1,3.21]
[1765905045215,66.28,128.16,128.12,3.26]
[1765905045520,0.05841537,128.15,128.14,3.26]
[1765905046616,23.09147343,128.19,128.15,3.26]
[1765905046915,66.28,128.2,128.15,3.26]
[1765905047317,68.69,128.2,128.15,3.26]
[1765905047708,0.05136268,128.19,128.16,3.3195602]
[1765905057118,0.05136268,128.19,128.16,10.3434602]
[1765905057324,0.05136268,128.19,128.17,3.26]
[1765905058314,0.00136268,128.19,128.17,10.2834]
[1765905058519,0.00136268,128.19,128.18,3.26]
[1765905062027,0.00136268,128.19,128.18,10.2829]
[1765905063723,0.00136268,128.19,128.18,3.26]
[1765905064028,2.46136268,128.19,128.16,3.3895602]
[1765905065322,2.46136268,128.19,128.16,0.0595602]
[1765905065837,0.00136268,128.19,128.16,0.0595602]
[1765905066125,2.46136268,128.19,128.16,0.0595602]
[1765905067522,2.46136268,128.19,128.16,3.3895602]
[1765905067523,0.00136268,128.19,128.16,3.3895602]
[1765905069627,0.00136268,128.19,128.18,3.33]
[1765905070616,0.00136268,128.19,128.18,7.0229]
[1765905071031,0.00136268,128.19,128.16,0.0595602]
[1765905071229,0.00136268,128.19,128.17,3.33]
[1765905072524,0.00136268,128.19,128.16,0.0595602]
[1765905072525,2.33854071,128.19,128.16,3.3895602]
[1765905076033,0.00136268,128.19,128.17,3.33]
[1765905078226,0.00136268,128.19,128.18,3.33]
[1765905082429,0.00136268,128.19,128.18,7.0229]
[1765905083433,0.00136268,128.19,128.18,3.33]
[1765905084937,0.00136268,128.19,128.16,3.3895602]
[1765905085328,0.00136268,128.19,128.18,3.33]
[1765905087738,0.00136268,128.19,128.16,3.3895602]
[1765905089340,0.00136268,128.19,128.18,3.33]
[1765905092044,0.00136268,128.19,128.18,10.3529]
[1765905092348,2.33717803,128.26,128.18,186.74241419]
[1765905092532,2.46,128.27,128.21,2.33717803]
[1765905092738,2.46,128.27,128.21,5.66717803]
[1765905093051,9.478,128.27,128.23,3.33]
[1765905093238,0.05530527,128.26,128.24,3.3874651]
[1765905093942,1.35696321,128.31,128.26,3.3]
[1765905094141,2.33717803,128.32,128.28,3.3]
[1765905094451,7.015,128.33,128.28,3.3]
[1765905094642,9.525,128.33,128.28,3.3]
[1765905094950,0.0537567,128.32,128.29,3.29109679]
[1765905095140,0.0537567,128.32,128.3,3.24]
[1765905095746,2.5637567,128.32,128.29,0.05109679]
[1765905096045,2.5637567,128.32,128.29,3.29109679]
[1765905099154,0.0537567,128.32,128.29,3.29109679]
[1765905103357,4.90093473,128.32,128.29,0.05109679]
[1765905103553,2.51,128.3,128.29,0.05109679]
[1765905103752,4.84717803,128.3,128.29,0.05109679]
[1765905106264,2.5637567,128.32,128.29,0.05109679]
[1765905106455,2.33717803,128.31,128.29,0.05109679]
[1765905106967,0.0537567,128.32,128.29,3.29109679]
[1765905109160,0.0537567,128.32,128.31,3.24]
[1765905109464,0.0037567,128.32,128.31,3.24]
[1765905110759,7.0125,128.37,128.33,3.24]
[1765905111158,9.5718,128.39,128.34,3.24]
[1765905111464,2.56,128.39,128.34,3.24]
[1765905111864,9.62663776,128.38,128.35,0.05919611]
[1765905113868,9.5728,128.37,128.35,0.05919611]
[1765905114468,2.56,128.36,128.35,0.05919611]
[1765905115055,9.5728,128.37,128.35,0.05919611]
[1765905116160,0.05463776,128.38,128.35,3.29919611]
[1765905118976,0.05463776,128.38,128.35,0.05919611]
[1765905118977,2.61463776,128.38,128.35,0.05919611]
[1765905119456,2.56,128.37,128.35,0.05919611]
[1765905119856,9.5725,128.37,128.35,0.05919611]
[1765905120063,2.56,128.36,128.35,0.05919611]
[1765905122559,9.5725,128.37,128.35,0.05919611]
[1765905122764,0.05463776,128.38,128.35,3.29919611]
[1765905123273,2.61463776,128.38,128.35,3.29919611]
[1765905123456,2.61463776,128.38,128.35,0.05919611]
[1765905123864,9.573,128.36,128.35,0.05919611]
[1765905124159,0.05463776,128.38,128.35,3.33919611]
[1765905124363,2.61463776,128.38,128.35,3.33919611]
[1765905124567,2.56,128.46,128.38,3.28]
[1765905124960,2.56,128.46,128.37,6.24915478]
[1765905124961,3.9153513,128.46,128.4,3.28]
[1765905125564,0.05597595,128.44,128.42,0.05037696]
[1765905127258,9.62507595,128.44,128.42,0.05037696]
[1765905127470,2.56,128.43,128.42,0.05037696]
[1765905127670,2.56,128.43,128.37,3.28]
[1765905127975,9.5707,128.41,128.37,3.28]
[1765905128376,2.56,128.44,128.37,3.28]
[1765905128564,0.05717996,128.42,128.39,3.33442568]
[1765905129371,0.05717996,128.42,128.4,3.28]
[1765905130979,0.05717996,128.42,128.39,3.33442568]
[1765905131778,0.05717996,128.42,128.39,10.34572568]
[1765905131979,0.05717996,128.42,128.4,3.28]
[1765905134982,0.05717996,128.42,128.41,3.28]
[1765905135475,0.05717996,128.42,128.4,3.28]
[1765905135678,2.61717996,128.42,128.39,0.05442568]
[1765905136678,9.5704,128.41,128.39,0.05442568]
[1765905137374,2.56,128.41,128.39,0.05442568]
[1765905138177,7.06737996,128.42,128.39,3.33442568]
[1765905138382,0.05717996,128.42,128.39,3.33442568]
[1765905139281,0.05717996,128.42,128.4,10.13643793]
[1765905139585,0.05717996,128.42,128.41,3.28]
[1765905140083,0.05717996,128.42,128.39,3.33442568]
[1765905141184,0.05717996,128.42,128.4,3.28]
[1765905142785,0.05717996,128.42,128.41,10.2903]
[1765905146084,7.0076,128.46,128.43,3.28]
[1765905147080,7.05677295,128.46,128.43,3.33455049]
[1765905147385,0.04917295,128.46,128.44,3.28]
[1765905148689,0.04917295,128.46,128.45,3.28]
[1765905149185,2.60917295,128.46,128.43,7.06375049]
[1765905149383,2.60917295,128.46,128.43,3.33455049]
[1765905149887,9.61677295,128.46,128.43,0.05455049]
[1765905150388,0.04917295,128.46,128.43,3.33455049]
[1765905150788,2.60917295,128.46,128.43,3.33455049]
[1765905150986,0.04917295,128.46,128.43,3.33455049]
[1765905151789,0.04917295,128.46,128.45,3.28]
[1765905152290,0.04917295,128.46,128.45,69.5]
[1765905152497,7.0052,128.51,128.46,3.28]
[1765905152697,9.6152,128.51,128.46,3.28]
[1765905152992,2.61,128.5,128.46,3.28]
[1765905153698,2.61,128.5,128.47,0.0599135]
[1765905154095,2.61,128.5,128.47,3.1899135]
[1765905154398,2.61,128.49,128.47,0.0599135]
[1765905155099,2.61,128.48,128.47,0.0599135]
[1765905155301,9.616,128.49,128.47,0.0599135]
[1765905155792,2.61,128.48,128.47,0.0599135]
[1765905160994,9.6165,128.48,128.47,0.0599135]
[1765905163902,2.61,128.48,128.47,0.0599135]
[1765905164616,9.6159,128.49,128.47,0.0599135]
[1765905164814,9.6165,128.48,128.47,0.0599135]
[1765905168307,2.61,128.49,128.47,0.0599135]
[1765905169120,2.55,128.47,128.39,10.31114835]
[1765905169318,2.55,128.45,128.39,3.12]
[1765905170012,116.19542636,128.46,128.39,3.12]
[1765905170013,2.55,128.43,128.39,3.12]
[1765905170224,0.05699233,128.42,128.4,3.17861716]
[1765905170522,0.05699233,128.42,128.4,3.17204969]
[1765905173613,2.60699233,128.42,128.4,0.05204969]
[1765905174131,0.05699233,128.42,128.4,3.17204969]
[1765905174827,2.60699233,128.42,128.4,0.05204969]
[1765905176025,2.55,128.41,128.4,0.05204969]
[1765905177025,9.5611,128.4,128.34,10.1337]
[1765905177229,2.55,128.4,128.35,3.12]
[1765905177429,2.55,128.42,128.36,3.12]
[1765905178022,2.60484089,128.4,128.38,0.05369215]
[1765905181531,0.05484089,128.4,128.38,3.17369215]
[1765905182822,2.60484089,128.4,128.38,0.05369215]
[1765905183028,6.24663053,128.4,128.38,0.05369215]
[1765905183230,2.55,128.39,128.38,0.05369215]
[1765905183431,9.5614,128.39,128.38,0.05369215]
[1765905183736,2.54,128.38,128.32,3.42]
[1765905183921,2.54,128.35,128.29,3.64178964]
[1765905184121,2.54,128.35,128.29,3.42]
[1765905184827,2.59732488,128.33,128.31,0.05409699]
[1765905187141,2.54,128.32,128.31,0.05409699]
[1765905192932,73.23222488,128.33,128.26,3.42]
[1765905192933,2.54,128.3,128.26,3.42]
[1765905193836,0.05376733,128.29,128.27,3.47376349]
[1765905195526,0.05376733,128.29,128.28,3.42]
[1765905195731,0.05376733,128.29,128.27,0.05376349]
[1765905195936,0.05376733,128.29,128.27,3.47376349]
[1765905196535,0.05376733,128.29,128.27,0.05376349]
[1765905196536,2.59376733,128.29,128.27,0.05376349]
[1765905197237,0.05376733,128.29,128.27,0.05376349]
[1765905197433,0.05376733,128.29,128.27,3.47376349]
[1765905200733,0.05376733,128.29,128.28,3.42]
[1765905203236,0.05376733,128.29,128.28,10.4374]
[1765905203434,66.16,128.33,128.29,3.42]
[1765905203634,7.0139,128.35,128.29,3.42]
[1765905203837,2.59,128.35,128.31,3.42]
[1765905204136,25.78467164,128.37,128.31,3.42]
[1765905204341,2.59,128.37,128.31,3.42]
[1765905204636,0.05133861,128.35,128.33,3.47118665]
[1765905205434,2.64133861,128.35,128.33,0.05118665]
[1765905206645,0.05133861,128.35,128.33,3.47118665]
[1765905209158,0.05133861,128.35,128.33,12.81810587]
[1765905209452,0.05133861,128.35,128.34,3.42]
[1765905209643,0.05133861,128.35,128.34,10.4341]
[1765905210541,0.05133861,128.35,128.34,3.42]
[1765905211442,0.05133861,128.35,128.34,10.4341]
[1765905211849,0.05133861,128.35,128.34,3.42]
[1765905212655,0.05133861,128.35,128.33,3.47118665]
[1765905213656,2.64133861,128.35,128.33,0.05118665]
[1765905213959,0.05133861,128.35,128.33,3.17118665]
[1765905215157,0.05133861,128.35,128.34,3.19]
[1765905220450,0.00133861,128.35,128.34,3.19]
[1765905232669,0.00133861,128.35,128.33,3.24118665]
[1765905232878,2.64,128.34,128.33,0.05118665]
[1765905233273,4.97355783,128.35,128.33,0.05118665]
[1765905234472,2.64,128.34,128.33,0.05118665]
[1765905234680,9.6541,128.34,128.33,0.05118665]
[1765905234877,7.0141,128.34,128.33,0.05118665]
[1765905235266,9.6541,128.34,128.33,0.05118665]
[1765905238080,9.6064,128.3,128.27,3.19]
[1765905238276,11.93861922,128.3,128.27,3.19]
[1765905239175,11.99506416,128.3,128.27,3.24088112]
[1765905240170,2.59,128.29,128.27,0.05088112]
[1765905240375,4.92221922,128.28,128.27,0.05088112]
[1765905241183,11.93961922,128.28,128.27,0.05088112]
[1765905241775,2.59,128.24,128.21,3.19]
[1765905241986,4.92221922,128.24,128.21,3.19]
[1765905242481,2.59,128.25,128.21,3.19]
[1765905242880,0.05209982,128.24,128.22,3.24496812]
[1765905247086,0.05209982,128.24,128.22,10.26556812]
[1765905247289,0.05209982,128.24,128.23,3.18]
[1765905249690,4.98221922,128.32,128.25,3.18]
[1765905249998,4.98221922,128.32,128.26,3.18]
[1765905250484,4.98221922,128.32,128.27,3.18]
[1765905250683,0.04973044,128.31,128.29,3.18]
[1765905252592,4.98221922,128.3,128.28,0.05912575]
[1765905252988,2.65,128.29,128.28,0.05912575]
[1765905253789,9.6664,128.3,128.28,0.05912575]
[1765905255099,7.0164,128.3,128.28,3.23912575]
[1765905255395,9.6664,128.3,128.28,0.05912575]
[1765905257500,2.65,128.29,128.28,0.05912575]
[1765905257689,9.6664,128.3,128.28,0.05912575]
[1765905259801,2.65,128.29,128.28,0.05912575]
[1765905260594,2.69973044,128.31,128.28,3.23912575]
[1765905261201,2.65,128.3,128.28,3.23912575]
[1765905261403,2.65,128.3,128.28,0.05912575]
[1765905261589,9.6663,128.3,128.28,0.05912575]
[1765905261795,2.65,128.29,128.28,0.05912575]
[1765905262497,0.04973044,128.31,128.28,3.23912575]
[1765905264705,0.04973044,128.31,128.28,10.25642575]
[1765905265000,0.04973044,128.31,128.29,3.18]
[1765905265599,2.69973044,128.31,128.29,3.18]
[1765905265908,0.04973044,128.31,128.29,3.18]
[1765905267805,2.69973044,128.31,128.29,3.18]
[1765905268609,0.04973044,128.31,128.29,3.18]
[1765905270412,2.65,128.3,128.28,0.05912575]
[1765905271310,9.6668,128.3,128.28,0.05912575]
[1765905272809,9.6668,128.29,128.28,0.05912575]